bitfinex/quotes_BTCUSD_20251208
["timestamp","ask_amount","ask_price","bid_price","bid_amount"]
[1765205013757,0.00011673,91361.0,91360.0,0.21891418]
[1765205014133,0.01106231,91361.0,91358.0,0.01094594]
[1765205014285,0.00011673,91361.0,91358.0,0.01094594]
[1765205014487,0.00011673,91361.0,91359.0,0.21891433]
[1765205014775,0.00011673,91361.0,91359.0,0.21891658]
[1765205015177,0.01646822,91360.0,91359.0,0.21891658]
[1765205015822,0.01094654,91353.0,91345.0,0.0109475]
[1765205016020,0.11070822,91360.0,91356.0,0.01094618]
[1765205016243,0.01094606,91357.0,91354.0,0.01094642]
[1765205016574,0.01094666,91352.0,91342.0,0.01094786]
[1765205016755,0.32962318,91360.0,91356.0,0.21892337]
[1765205016960,0.01094666,91352.0,91346.0,0.21894697]
[1765205017139,0.21892313,91357.0,91350.0,0.0109469]
[1765205017340,0.10518582,91359.0,91355.0,0.22987035]
[1765205017521,0.01094594,91358.0,91350.0,0.21993693]
[1765205017724,0.09424,91359.0,91350.0,0.22988395]
[1765205017936,0.0178,91359.0,91358.0,0.21891665]
[1765205018159,0.0178,91359.0,91355.0,0.22987233]
[1765205018376,0.01094606,91357.0,91353.0,0.01094654]
[1765205018522,0.0178,91359.0,91357.0,0.21891899]
[1765205018723,0.01646822,91360.0,91357.0,0.22986505]
[1765205018966,0.00011673,91361.0,91357.0,0.22986505]
[1765205018967,0.00011673,91361.0,91359.0,0.21891658]
[1765205019175,0.00019989,91408.0,91406.0,0.0109402]
[1765205019502,0.00019989,91408.0,91390.0,0.001]
[1765205019503,0.01094091,91400.0,91390.0,0.001]
[1765205019630,0.10518008,91407.0,91400.0,0.21981674]
[1765205019833,0.09424,91407.0,91401.0,0.01094079]
[1765205020866,0.00058877,91408.0,91405.0,0.01094032]
[1765205021111,0.09424,91407.0,91401.0,0.22975554]
[1765205021270,0.00058877,91408.0,91407.0,0.21880162]
[1765205022259,0.00058877,91408.0,91407.0,0.22041449]
[1765205022680,0.00442797,91408.0,91407.0,0.34455748]
[1765205022947,0.00442797,91408.0,91407.0,0.28203449]
[1765205023198,0.00442797,91408.0,91407.0,0.36235748]
[1765205023433,0.00442797,91408.0,91407.0,0.68535748]
[1765205023689,0.00442797,91408.0,91407.0,0.66755748]
[1765205023947,0.00442797,91408.0,91407.0,0.56121449]
[1765205024235,0.00442797,91408.0,91407.0,0.54341449]
[1765205024417,0.00442797,91408.0,91407.0,0.22041449]
[1765205024827,0.00442797,91408.0,91407.0,0.23821449]
[1765205025040,0.00442797,91408.0,91403.0,0.21881119]
[1765205025041,0.01094008,91407.0,91403.0,0.21881119]
[1765205025248,0.00442797,91408.0,91403.0,0.21881119]
[1765205025249,0.01152873,91408.0,91403.0,0.22975124]
[1765205025468,0.00058877,91408.0,91406.0,0.21880176]
[1765205025877,0.01152873,91408.0,91405.0,0.01094032]
[1765205026096,0.00058877,91408.0,91407.0,0.21880162]
[1765205026336,0.00058877,91408.0,91406.0,0.21880219]
[1765205026556,0.00058877,91408.0,91402.0,0.01094067]
[1765205026557,0.2297568,91401.0,91397.0,0.01094127]
[1765205026818,0.2297568,91401.0,91360.0,0.00099999]
[1765205026819,0.01646822,91398.0,91390.0,0.01094211]
[1765205027029,0.01094235,91388.0,91380.0,0.01094331]
[1765205027252,0.01094307,91382.0,91375.0,0.01094391]
[1765205027465,0.01094307,91382.0,91376.0,0.01094379]
[1765205027699,0.01094343,91379.0,91374.0,0.01094403]
[1765205027914,0.01094403,91374.0,91369.0,0.01094463]
[1765205028139,0.01646822,91375.0,91372.0,0.22982786]
[1765205028369,0.22983801,91369.0,91363.0,0.22985065]
[1765205028595,0.30960665,91368.0,91359.0,0.01094582]
[1765205028805,0.30999529,91368.0,91360.0,0.001]
[1765205029016,0.09071,91367.0,91356.0,0.01094618]
[1765205029249,0.09071,91367.0,91348.0,0.2189417]
[1765205029250,0.09071,91367.0,91351.0,0.01094678]
[1765205029476,0.41371,91367.0,91360.0,0.001]
[1765205029870,0.46064,91367.0,91360.0,0.0119457]
[1765205030073,0.46064,91367.0,91361.0,0.01094558]
[1765205030304,0.67953741,91367.0,91360.0,0.001]
[1765205030765,0.67953741,91367.0,91366.0,0.0003001]
[1765205032257,0.04693,91367.0,91366.0,0.0003001]
[1765205032474,0.26582741,91367.0,91366.0,0.0003001]
[1765205032881,0.04693,91367.0,91366.0,0.0003001]
[1765205033628,0.00038864,91368.0,91366.0,0.0003001]
[1765205033629,0.00038864,91368.0,91366.0,0.00191297]
[1765205033863,0.00038864,91368.0,91367.0,0.25483763]
[1765205034032,0.00038864,91368.0,91367.0,0.23827028]
[1765205034831,0.00038864,91368.0,91367.0,0.23831028]
[1765205036064,0.05787223,91389.0,91367.0,0.23831028]
[1765205036065,0.10945299,91415.0,91402.0,0.21881359]
[1765205036185,0.04693,91415.0,91410.0,0.001]
[1765205036397,0.21879269,91411.0,91403.0,0.01094055]
[1765205036594,0.01093924,91414.0,91410.0,0.22973194]
[1765205036902,0.01093948,91412.0,91409.0,0.01093984]
[1765205037105,0.09071,91414.0,91408.0,0.01093996]
[1765205037310,0.04704657,91415.0,91412.0,0.01093948]
[1765205037545,0.00011657,91415.0,91414.0,0.21878486]
[1765205038333,0.04704657,91415.0,91414.0,0.21878486]
[1765205038529,0.04704657,91415.0,91412.0,0.01093948]
[1765205038761,0.04704657,91415.0,91413.0,0.21878529]
[1765205039064,0.04704657,91415.0,91412.0,0.01093948]
[1765205039268,0.04704657,91415.0,91410.0,0.01193972]
[1765205039466,0.01646822,91413.0,91409.0,0.01093984]
[1765205039643,0.01646822,91413.0,91412.0,0.21878965]
[1765205039815,0.03866421,91413.0,91411.0,0.21878972]
[1765205040013,0.03866421,91413.0,91410.0,0.22973416]
[1765205040014,0.22973787,91409.0,91402.0,0.01094067]
[1765205040222,0.22973787,91409.0,91400.0,0.01194091]
[1765205040223,0.01646822,91413.0,91410.0,0.01093972]
[1765205040418,0.12193758,91413.0,91409.0,0.01093984]
[1765205040752,0.01016579,91412.0,91409.0,0.22973499]
[1765205041092,0.02219599,91411.0,91410.0,0.21879444]
[1765205041297,0.01016579,91412.0,91410.0,0.21879444]
[1765205041459,0.02219599,91412.0,91410.0,0.22040731]
[1765205041821,0.00392699,91411.0,91410.0,0.22040731]
[1765205042379,0.00392699,91411.0,91409.0,0.22973558]
[1765205042532,0.02219599,91410.0,91409.0,0.22973558]
[1765205042736,0.00011657,91415.0,91409.0,0.22973558]
[1765205042737,0.02219599,91414.0,91412.0,0.21878965]
[1765205042938,0.02219599,91414.0,91412.0,0.22040252]
[1765205043138,0.00011657,91415.0,91414.0,0.21878486]
[1765205043383,0.00011657,91415.0,91414.0,0.34285773]
[1765205044226,1e-08,91415.0,91414.0,0.66715072]
[1765205044647,1e-08,91415.0,91414.0,2.54574272]
[1765205044847,0.01016712,91467.0,91457.0,0.0109341]
[1765205045019,0.01093063,91486.0,91459.0,0.26267722]
[1765205045020,0.00078857,91460.0,91459.0,0.26267722]
[1765205045180,0.00078857,91460.0,91459.0,0.26429009]
[1765205045384,0.00078857,91460.0,91459.0,0.32552009]
[1765205045565,0.00078857,91460.0,91459.0,0.38304308]
[1765205045787,0.00724165,91493.0,91459.0,0.38304308]
[1765205045788,0.00724165,91493.0,91481.0,0.21862463]
[1765205045988,0.0001565,91482.0,91481.0,0.2379975]
[1765205046255,0.0001565,91482.0,91481.0,0.36097049]
[1765205046477,0.00724165,91493.0,91492.0,0.21859834]
[1765205046657,0.00724165,91493.0,91492.0,0.2827342]
[1765205046832,0.00724165,91493.0,91492.0,0.3607842]
[1765205047034,0.00724165,91493.0,91492.0,0.6837842]
[1765205047217,0.00724165,91493.0,91492.0,0.6660242]
[1765205047425,0.00724165,91493.0,91492.0,0.6837842]
[1765205047691,1e-08,91493.0,91492.0,5.6837842]
[1765205047925,1e-08,91493.0,91492.0,1.6066842]
[1765205048145,1e-08,91493.0,91492.0,0.62126121]
[1765205048365,1e-08,91493.0,91492.0,0.56097121]
[1765205048567,1e-08,91493.0,91492.0,0.60350121]
[1765205048773,1e-08,91493.0,91492.0,0.56097121]
[1765205048988,1e-08,91493.0,91492.0,0.21859834]
[1765205049310,1e-08,91493.0,91484.0,0.01093087]
[1765205049515,0.09453001,91493.0,91490.0,0.01093015]
[1765205049648,1e-08,91493.0,91490.0,0.01093015]
[1765205049849,1e-08,91493.0,91491.0,0.21860073]
[1765205050253,0.01093099,91483.0,91475.0,0.01093194]
[1765205050553,0.02219599,91490.0,91483.0,0.01093099]
[1765205050754,0.02219599,91481.0,91446.0,0.06029]
[1765205050961,0.02219599,91479.0,91476.0,0.22956612]
[1765205051133,1e-08,91493.0,91487.0,0.01093051]
[1765205051309,1e-08,91493.0,91481.0,0.01093123]
[1765205051310,0.02219599,91483.0,91482.0,0.22955335]
[1765205051704,0.02219599,91483.0,91474.0,0.01776]
[1765205051705,0.01093147,91479.0,91453.0,0.21868998]
[1765205051902,0.01093147,91479.0,91423.0,0.08936457]
[1765205051903,0.323,91477.0,91449.0,0.01776]
[1765205052143,0.01093577,91443.0,91433.0,0.01093697]
[1765205052292,0.00011628,91443.0,91441.0,0.21872026]
[1765205052719,0.00011628,91443.0,91440.0,0.01093613]
[1765205052925,0.00011628,91443.0,91442.0,0.01727766]
[1765205053123,0.02231227,91443.0,91442.0,0.21871787]
[1765205053620,0.02231227,91443.0,91437.0,0.22966424]
[1765205053621,0.02219599,91441.0,91437.0,0.22966424]
[1765205053822,0.00011628,91443.0,91438.0,0.01093637]
[1765205054247,0.02219599,91435.0,91434.0,0.01093685]
[1765205054699,0.01093697,91433.0,91430.0,0.001]
[1765205054808,0.02219599,91423.0,91422.0,0.01093828]
[1765205055008,0.21874658,91430.0,91419.0,0.21877074]
[1765205055009,0.02219599,91420.0,91419.0,0.01093864]
[1765205055248,0.02219599,91420.0,91419.0,0.22971154]
[1765205055636,0.01093673,91435.0,91419.0,0.22971154]
[1765205055637,0.11581822,91447.0,91434.0,0.21873691]
[1765205055835,0.09935,91435.0,91430.0,0.001]
[1765205056017,0.04826,91444.0,91440.0,0.01093613]
[1765205056217,0.01646822,91447.0,91442.0,0.21871787]
[1765205056656,0.01093541,91446.0,91440.0,0.01093613]
[1765205056867,0.01093553,91445.0,91441.0,0.21872026]
[1765205057090,0.02219599,91439.0,91438.0,0.01093637]
[1765205057530,0.02231227,91443.0,91442.0,0.21871787]
[1765205058064,0.00011628,91443.0,91440.0,0.22965728]
[1765205058360,0.01093697,91433.0,91430.0,0.00161287]
[1765205058475,0.01093697,91433.0,91425.0,0.21875854]
[1765205058476,0.24093987,91432.0,91425.0,0.21875854]
[1765205058677,0.24093987,91432.0,91426.0,0.0109378]
[1765205058678,0.02219599,91427.0,91426.0,0.0109378]
[1765205058953,0.21874388,91432.0,91431.0,0.0109372]
[1765205058954,0.02189589,91432.0,91431.0,0.0109372]
[1765205059095,0.02219583,91432.0,91430.0,0.001]
[1765205059300,0.02219583,91432.0,91429.0,0.22968531]
[1765205059509,0.01093673,91435.0,91431.0,0.22968012]
[1765205059699,0.02219583,91433.0,91432.0,0.22967776]
[1765205059920,0.21873844,91434.0,91429.0,0.2296853]
[1765205060119,0.02219583,91431.0,91430.0,0.01093732]
[1765205060332,0.02219583,91431.0,91340.0,0.05494641]
[1765205060333,0.02219583,91419.0,91418.0,0.01093876]
[1765205060529,0.02219583,91426.0,91425.0,0.01093792]
[1765205060888,0.02219583,91425.0,91424.0,0.01093804]
[1765205061168,0.01093756,91428.0,91418.0,0.00161287]
[1765205061169,0.02219583,91421.0,91418.0,0.00161287]
[1765205061395,0.02219583,91414.0,91413.0,1.5]
[1765205061627,0.07045583,91414.0,91413.0,1.5]
[1765205061809,0.02219583,91414.0,91413.0,1.5]
[1765205062239,0.12154583,91414.0,91413.0,1.5]
[1765205062729,0.01776,91424.0,91423.0,0.21876333]
[1765205063383,0.02219583,91423.0,91422.0,0.2187639]
[1765205063562,0.02219583,91419.0,91418.0,0.22971286]
[1765205063769,0.01646822,91423.0,91422.0,0.21876572]
[1765205064086,0.03866405,91423.0,91422.0,0.22037859]
[1765205064508,0.02740351,91447.0,91422.0,0.00161287]
[1765205064720,0.03866405,91447.0,91446.0,0.2187083]
[1765205064876,0.01646822,91447.0,91440.0,0.001]
[1765205065059,0.02219583,91446.0,91445.0,0.21871001]
[1765205065480,0.01646822,91447.0,91441.0,0.01093601]
[1765205065681,0.01646822,91447.0,91443.0,0.01093577]
[1765205065881,0.02219583,91445.0,91444.0,0.01093565]
[1765205066060,0.02219583,91435.0,91434.0,0.01093685]
[1765205066259,0.01093625,91439.0,91433.0,0.01093697]
[1765205066260,0.01093649,91437.0,91433.0,0.01093697]
[1765205066461,0.01093649,91437.0,91422.0,0.00261287]
[1765205066462,0.01093708,91432.0,91428.0,0.01093756]
[1765205066706,0.02219583,91426.0,91425.0,0.01093792]
[1765205067065,0.01646822,91429.0,91428.0,0.21875136]
[1765205067268,0.01646822,91429.0,91428.0,0.22036423]
[1765205068390,0.01646822,91429.0,91428.0,0.66617722]
[1765205069002,0.01646822,91429.0,91428.0,0.68389722]
[1765205069176,0.01646822,91429.0,91428.0,0.22036423]
[1765205069779,0.0001163,91447.0,91444.0,0.01093565]
[1765205070166,0.0001163,91447.0,91446.0,0.2187083]
[1765205070504,0.00509634,91447.0,91446.0,0.22032117]
[1765205070887,0.00509634,91447.0,91446.0,0.28061117]
[1765205071095,0.00509634,91447.0,91446.0,0.66613416]
[1765205071307,1e-08,91447.0,91446.0,0.66713416]
[1765205071506,1e-08,91447.0,91446.0,5.31923416]
[1765205071764,1e-08,91447.0,91446.0,2.97823416]
[1765205071962,1e-08,91447.0,91446.0,3.00042616]
[1765205072188,1e-08,91447.0,91446.0,3.02950073]
[1765205072388,1e-08,91447.0,91446.0,3.00042616]
[1765205072720,1e-08,91447.0,91446.0,2.55173416]
[1765205072920,1e-08,91447.0,91446.0,1.93445416]
[1765205073225,1e-08,91447.0,91446.0,1.93545416]
[1765205073425,1e-08,91447.0,91446.0,1.93445416]
[1765205073619,1e-08,91447.0,91446.0,1.99328844]
[1765205073824,1e-08,91447.0,91446.0,1.95664616]
[1765205074063,1e-08,91447.0,91446.0,1.93892616]
[1765205074280,1e-08,91447.0,91446.0,1.93445416]
[1765205074457,1e-08,91447.0,91446.0,1.28155416]
[1765205074840,1e-08,91447.0,91446.0,1.05783416]
[1765205075040,1e-08,91447.0,91446.0,1.07555416]
[1765205075469,1e-08,91447.0,91446.0,1.11453351]
[1765205075667,1e-08,91447.0,91446.0,1.13672551]
[1765205076056,1e-08,91447.0,91446.0,1.11453351]
[1765205076277,1e-08,91447.0,91446.0,1.09774616]
[1765205076669,1e-08,91447.0,91446.0,1.05783416]
[1765205076869,1e-08,91447.0,91446.0,1.07555416]
[1765205077067,1e-08,91447.0,91446.0,0.73483416]
[1765205077295,1e-08,91447.0,91446.0,1.11421438]
[1765205077511,1e-08,91447.0,91446.0,1.15319661]
[1765205077714,1e-08,91447.0,91446.0,1.09202238]
[1765205077917,1e-08,91447.0,91446.0,1.09649438]
[1765205078120,1e-08,91447.0,91446.0,1.05076213]
[1765205078323,1e-08,91447.0,91446.0,0.28061117]
[1765205078560,1e-08,91447.0,91446.0,0.22032117]
[1765205078758,1e-08,91447.0,91446.0,0.29833117]
[1765205079074,1e-08,91447.0,91446.0,4.08502238]
[1765205079478,1e-08,91447.0,91446.0,2.95167505]
[1765205079687,1e-08,91447.0,91446.0,0.74414416]
[1765205079917,1e-08,91447.0,91446.0,0.77440648]
[1765205080103,1e-08,91447.0,91446.0,0.34090117]
[1765205080312,1e-08,91447.0,91446.0,0.35862117]
[1765205080666,1e-08,91447.0,91446.0,0.68162117]
[1765205080863,1e-08,91447.0,91446.0,0.74414416]
[1765205081096,1e-08,91447.0,91446.0,0.76633616]
[1765205081266,1e-08,91447.0,91446.0,2.88324416]
[1765205081659,1e-08,91447.0,91446.0,1.07834416]
[1765205082059,1e-08,91447.0,91446.0,1.10053616]
[1765205082708,0.01646822,91482.0,91481.0,0.21862463]
[1765205082937,0.01658463,91482.0,91481.0,0.29663463]
[1765205083122,0.00011641,91482.0,91481.0,0.67992463]
[1765205083511,0.00011641,91482.0,91481.0,0.74406049]
[1765205083899,10.0,91500.0,91492.0,0.60412133]
[1765205084094,10.0,91500.0,91492.0,0.6837442]
[1765205084302,10.0,91500.0,91492.0,0.7440342]
[1765205084500,10.0,91500.0,91492.0,0.61960834]
[1765205084725,10.0,91500.0,91492.0,0.54159834]
[1765205084929,10.0,91500.0,91492.0,0.55931834]
[1765205085124,10.0,91500.0,91492.0,0.54159834]
[1765205085332,10.0,91500.0,91492.0,0.21859834]
[1765205085516,10.0,91500.0,91492.0,0.23631834]
[1765205086110,0.01646822,91499.0,91492.0,0.23631834]
[1765205086355,0.01646822,91499.0,91492.0,0.21859834]
[1765205086610,0.01000001,91493.0,91492.0,0.21859834]
[1765205086817,0.02219584,91493.0,91492.0,0.21859834]
[1765205087067,0.03019584,91493.0,91492.0,0.21859834]
[1765205087294,0.03019584,91493.0,91490.0,0.22953111]
[1765205087295,0.02219583,91491.0,91490.0,0.01093015]
[1765205087483,0.00200001,91493.0,91491.0,0.21860073]
[1765205087687,0.02219583,91492.0,91491.0,0.21860073]
[1765205088195,0.00500001,91493.0,91491.0,0.2805036]
[1765205088352,0.00500001,91493.0,91492.0,0.44742586]
[1765205088560,0.00500001,91493.0,91492.0,0.38329]
[1765205088750,0.00934561,91493.0,91492.0,0.34072]
[1765205088956,0.00134561,91493.0,91492.0,0.34072]
[1765205089352,0.00934561,91493.0,91492.0,0.01772]
[1765205089580,0.00134561,91493.0,91492.0,0.1383]
[1765205089810,0.00134561,91493.0,91492.0,0.54729569]
[1765205089988,1e-08,91493.0,91492.0,0.52543586]
[1765205090192,9.14195876,91500.0,91499.0,0.44581299]
[1765205090392,8.90295263,91500.0,91499.0,5.40489586]
[1765205090644,8.46032611,91500.0,91499.0,5.40489586]
[1765205090789,8.46032611,91500.0,91499.0,5.4095937]
[1765205090790,8.42752191,91500.0,91499.0,5.4095937]
[1765205090989,8.06611412,91500.0,91499.0,5.47400245]
[1765205091221,7.51495535,91500.0,91499.0,0.44474302]
[1765205091375,6.77443619,91500.0,91499.0,5.44126436]
[1765205091582,6.73930579,91500.0,91499.0,5.4753162]
[1765205091836,6.63778149,91500.0,91499.0,5.44474302]
[1765205092041,6.33793962,91500.0,91499.0,5.40932786]
[1765205092243,6.02515766,91500.0,91499.0,5.45314884]
[1765205092452,6.02515766,91500.0,91499.0,5.43308786]
[1765205092453,5.49211719,91500.0,91499.0,5.43308786]
[1765205092625,5.0406885,91500.0,91499.0,5.46724856]
[1765205092826,5.00598981,91500.0,91499.0,5.46724856]
[1765205093046,4.76677345,91500.0,91499.0,5.46724856]
[1765205093377,4.37700904,91500.0,91499.0,5.47627818]
[1765205093564,4.37700904,91500.0,91499.0,5.38859449]
[1765205093703,4.06249369,91500.0,91499.0,5.37956487]
[1765205094051,3.81974503,91500.0,91499.0,5.44208786]
[1765205094277,3.64072722,91500.0,91499.0,0.48090372]
[1765205094434,3.64072722,91500.0,91499.0,5.05656487]
[1765205094613,3.63972722,91500.0,91499.0,4.84171287]
[1765205094926,3.63972722,91500.0,91499.0,1.10759586]
[1765205095287,3.63972722,91500.0,91499.0,1.33717287]
[1765205095418,3.63972722,91500.0,91499.0,0.98541287]
[1765205095617,3.63972722,91500.0,91499.0,0.64157287]
[1765205095855,3.63972722,91500.0,91499.0,0.96457287]
[1765205096074,3.63972722,91500.0,91499.0,0.97157287]
[1765205096216,3.63972722,91500.0,91499.0,0.72828786]
[1765205096416,3.63972722,91500.0,91499.0,1.05128786]
[1765205096659,3.63972722,91500.0,91499.0,1.46312786]
[1765205096925,3.63972722,91500.0,91499.0,1.39432786]
[1765205097141,3.63972722,91500.0,91499.0,0.72833586]
[1765205097358,3.63972722,91500.0,91499.0,0.77024786]
[1765205097559,3.63972722,91500.0,91499.0,5.43004786]
[1765205097797,2.98465189,91500.0,91499.0,5.43004786]
[1765205097979,2.74260984,91500.0,91499.0,5.45716885]
[1765205098154,2.74260984,91500.0,91499.0,5.42904786]
[1765205098353,2.74260984,91500.0,91499.0,5.41032786]
[1765205098574,2.01744191,91500.0,91499.0,5.42804786]
[1765205098875,1.68703651,91500.0,91499.0,5.40785586]
[1765205099074,1.58712142,91500.0,91499.0,5.42804786]
[1765205099280,1.32473421,91500.0,91499.0,5.43004786]
[1765205099641,1.24130348,91500.0,91499.0,5.48878174]
[1765205099932,1.24130348,91500.0,91499.0,5.43704786]
[1765205100147,0.61193099,91500.0,91499.0,5.41932786]
[1765205100357,0.61193099,91500.0,91499.0,0.00161287]
[1765205100569,0.61193099,91500.0,91499.0,2.29609103]
[1765205100739,0.61293099,91500.0,91499.0,4.31723287]
[1765205100938,0.61293099,91500.0,91499.0,2.70683287]
[1765205101144,0.11269784,91500.0,91499.0,2.70083287]
[1765205101344,0.11269784,91500.0,91499.0,2.78554786]
[1765205101550,0.11269784,91500.0,91499.0,0.69791287]
[1765205101777,0.11269784,91500.0,91499.0,0.02737287]
[1765205101916,0.11269784,91500.0,91499.0,0.00261287]
[1765205102120,0.11269784,91500.0,91499.0,0.36304521]
[1765205102392,0.11269784,91500.0,91499.0,0.003]
[1765205102561,0.11269784,91500.0,91494.0,0.02868967]
[1765205102776,0.11269784,91500.0,91494.0,0.01776]
[1765205102974,0.11269784,91500.0,91480.0,0.01876]
[1765205102975,0.01092979,91493.0,91480.0,0.01876]
[1765205103175,0.09148,91499.0,91480.0,0.00111641]
[1765205103176,0.01093027,91489.0,91480.0,0.00111641]
[1765205103335,0.02219583,91481.0,91480.0,0.00011641]
[1765205103542,0.12169784,91500.0,91490.0,0.001]
[1765205103839,0.12169784,91500.0,91490.0,0.01876]
[1765205104037,0.01646822,91493.0,91490.0,0.01876]
[1765205104368,0.01646822,91493.0,91480.0,0.00111641]
[1765205104369,0.02219583,91492.0,91480.0,0.00111641]
[1765205104579,0.02219583,91481.0,91480.0,0.00011641]
[1765205105004,0.02219583,91481.0,91455.0,0.01093433]
[1765205105005,0.0109335,91462.0,91452.0,0.01776]
[1765205105218,0.323,91480.0,91424.0,0.00012]
[1765205105219,0.02219583,91453.0,91442.0,0.01776]
[1765205105439,0.04564,91463.0,91451.0,0.01093481]
[1765205105659,0.04564,91463.0,91449.0,0.01093505]
[1765205105660,0.01093159,91478.0,91460.0,0.001]
[1765205105871,0.01093159,91478.0,91442.0,0.01976144]
[1765205105872,0.01093421,91456.0,91446.0,0.01776]
[1765205106077,0.04564,91465.0,91442.0,0.00200144]
[1765205106078,0.01093326,91464.0,91442.0,0.00200144]
[1765205106299,0.01093505,91449.0,91442.0,0.00038857]
[1765205106451,0.02219583,91443.0,91442.0,0.00038857]
[1765205106976,0.11367583,91443.0,91442.0,0.00038857]
[1765205107182,0.01093625,91439.0,91419.0,0.01093864]
[1765205107460,0.09148,91443.0,91421.0,0.21876602]
[1765205107461,0.01093601,91441.0,91421.0,0.21876602]
[1765205107620,0.02219583,91433.0,91422.0,0.01093828]
[1765205107872,0.02219583,91433.0,91423.0,0.01093816]
[1765205108074,0.05657661,91436.0,91419.0,0.00172917]
[1765205108271,0.02219583,91423.0,91419.0,0.0001163]
[1765205108447,0.04564,91436.0,91430.0,0.001]
[1765205108711,0.06783583,91436.0,91430.0,0.001]
[1765205109087,0.04564,91445.0,91440.0,0.001]
[1765205109492,0.02219583,91442.0,91440.0,0.001]
[1765205109650,0.02219583,91449.0,91442.0,0.01093589]
[1765205109855,0.02219583,91449.0,91444.0,0.01093565]
[1765205110057,0.02219583,91449.0,91440.0,0.001]
[1765205110264,0.02740232,91457.0,91450.0,0.001]
[1765205110265,0.01646822,91457.0,91450.0,0.001]
[1765205110448,0.01646822,91457.0,91454.0,0.01093445]
[1765205110644,0.01646822,91457.0,91454.0,0.02869445]
[1765205110848,0.01646822,91457.0,91455.0,0.01776]
[1765205111348,0.04564,91475.0,91460.0,0.001]
[1765205111584,0.04564,91475.0,91461.0,0.01776]
[1765205111585,0.02219583,91464.0,91461.0,0.01776]
[1765205111801,0.02219583,91464.0,91461.0,0.02869362]
[1765205112018,0.02219583,91464.0,91462.0,0.21866817]
[1765205112223,0.00038802,91475.0,91472.0,0.0109323]
[1765205112448,0.00038802,91475.0,91470.0,0.001]
[1765205112646,0.00638802,91475.0,91470.0,0.001]
[1765205112878,0.00638802,91475.0,91447.0,0.01093529]
[1765205112879,0.0109329,91467.0,91447.0,0.01093529]
[1765205113075,0.02219583,91449.0,91448.0,0.03963035]
[1765205113198,0.01093302,91466.0,91452.0,0.01093469]
[1765205113199,0.003,91464.0,91452.0,0.01093469]
[1765205113424,0.02219583,91461.0,91453.0,0.01776]
[1765205113648,0.003,91464.0,91453.0,0.01776]
[1765205113840,0.01646822,91454.0,91441.0,0.21872026]
[1765205114095,0.01646822,91454.0,91442.0,0.35169589]
[1765205114263,0.01646822,91454.0,91444.0,0.01093565]
[1765205114444,0.01646822,91454.0,91443.0,0.01093577]
[1765205114657,0.01646822,91454.0,91439.0,0.01093625]
[1765205114658,0.02219583,91451.0,91432.0,0.22967658]
[1765205114879,0.02219583,91441.0,91434.0,0.01093685]
[1765205115102,0.02219583,91433.0,91430.0,0.001]
[1765205115320,0.02219583,91450.0,91440.0,0.001]
[1765205115554,0.02219583,91450.0,91441.0,0.002]
[1765205116051,0.02219583,91459.0,91452.0,0.01093469]
[1765205116381,0.09554,91474.0,91460.0,0.001]
[1765205116564,0.02219583,91469.0,91460.0,0.001]
[1765205116764,0.02219583,91469.0,91453.0,0.23645018]
[1765205116765,0.02219583,91469.0,91453.0,0.01776]
[1765205116965,0.02219583,91469.0,91450.0,0.21869757]
[1765205116966,0.003,91450.0,91447.0,0.01776]
[1765205117203,0.00038802,91450.0,91448.0,0.21870253]
[1765205117372,0.00038802,91450.0,91448.0,0.2203154]
[1765205117593,0.00038802,91450.0,91448.0,0.2203151]
[1765205117883,0.00038802,91450.0,91449.0,0.01776]
[1765205118083,0.00038802,91450.0,91432.0,0.22967801]
[1765205118084,0.048,91441.0,91430.0,0.001]
[1765205118274,0.048,91441.0,91428.0,0.21875089]
[1765205118275,0.048,91441.0,91428.0,0.01093756]
[1765205118419,0.02219583,91432.0,91431.0,0.01776]
[1765205118618,0.02219583,91432.0,91429.0,0.01093744]
[1765205118619,0.02219583,91425.0,91410.0,0.01093972]
[1765205118824,0.02219583,91425.0,91421.0,0.0286984]
[1765205119214,0.02219583,91425.0,91416.0,0.010939]
[1765205119440,0.01646822,91423.0,91421.0,0.01776]
[1765205119643,0.01646822,91423.0,91422.0,0.01776]
[1765205120074,0.02219583,91424.0,91422.0,0.01776]
[1765205120288,0.02219583,91422.0,91421.0,0.001]
[1765205120709,0.02219583,91421.0,91420.0,0.001]
[1765205120948,0.02219583,91424.0,91421.0,0.0109384]
[1765205121171,0.02219583,91424.0,91421.0,0.22970538]
[1765205121602,0.01646822,91422.0,91421.0,0.0001163]
[1765205121810,0.03866405,91422.0,91421.0,0.0001163]
[1765205122270,0.13420405,91422.0,91421.0,0.0001163]
[1765205122706,0.13420405,91422.0,91400.0,0.01275378]
[1765205122707,0.02219583,91401.0,91400.0,0.0002]
[1765205122908,0.01093948,91412.0,91400.0,0.0002]
[1765205122909,0.323,91419.0,91400.0,0.00131657]
[1765205123115,0.01093996,91408.0,91400.0,0.00031657]
[1765205123314,0.01094055,91403.0,91400.0,0.00031657]
[1765205123452,0.09554,91402.0,91400.0,0.00031657]
[1765205123804,0.02219583,91401.0,91400.0,0.00031657]
[1765205124364,0.11773583,91401.0,91400.0,0.00431657]
[1765205124584,0.02219583,91401.0,91400.0,0.00031657]
[1765205125113,0.02319583,91401.0,91400.0,0.00431657]
[1765205125313,0.11873583,91401.0,91400.0,0.00431657]
[1765205125494,0.13520405,91401.0,91400.0,0.00431657]
[1765205125696,0.01946822,91401.0,91400.0,0.00431657]
[1765205125894,0.11500822,91401.0,91400.0,0.00431657]
[1765205126096,0.13720405,91401.0,91400.0,0.00431657]
[1765205126617,0.13620405,91401.0,91400.0,0.00031657]
[1765205126824,0.13720405,91401.0,91400.0,0.00531657]
[1765205126997,0.13720405,91401.0,91400.0,0.00031657]
[1765205127185,0.19638405,91401.0,91400.0,0.00031657]
[1765205127567,0.19738405,91401.0,91400.0,0.00631657]
[1765205127989,0.19538405,91401.0,91400.0,0.00631657]
[1765205128269,0.02046822,91401.0,91400.0,0.00792944]
[1765205128471,0.004,91401.0,91400.0,0.00792944]
[1765205128628,0.004,91401.0,91400.0,0.02613109]
[1765205128971,0.001,91401.0,91400.0,0.00792944]
[1765205129118,0.09554,91414.0,91401.0,0.01094079]
[1765205129322,0.004,91401.0,91400.0,0.00331657]
[1765205129566,0.004,91401.0,91400.0,0.04243717]
[1765205129876,0.003,91401.0,91400.0,0.58287315]
[1765205130056,0.003,91401.0,91400.0,0.56146542]
[1765205130376,0.003,91401.0,91400.0,0.56208542]
[1765205130895,0.005,91401.0,91400.0,0.57746542]
[1765205131098,0.02219583,91416.0,91414.0,0.01093924]
[1765205131313,0.01646822,91430.0,91423.0,0.01093816]
[1765205131502,0.01646822,91430.0,91420.0,0.01193852]
[1765205131703,0.01646822,91430.0,91423.0,0.21876259]
[1765205131976,0.02219583,91424.0,91423.0,0.22970084]